Cogmind - Beta 15 *** ADVENTURER MODE // 2025.09.08 @ 14:13:11 Player: Knightshade Result: Destroyed by F9-WT6(R) with Subdweller Machine Gun Performance ------------- Evolutions (0) 0 Regions Visited (3) 600 Robots Destroyed (36) 180 Value Destroyed (903) 903 Prototype IDs (15) 300 Alien Tech Used (0) 0 Bonus (-108) -108 TOTAL SCORE: 1875 Bonus ------- Follower Combat Kills 60 Friendly Fire -168 Cogmind --------- Core Integrity 0/250 Matter 248/300 Energy 160/160 System Corruption 0% Temperature Cool (0) Movement Rolling (119) Ox2 Location -10/Subcaves Parts ------- > --- POWER (1) -------- Light Nuclear Core > --- PROPULSION (2) --- Wheel Subdweller Monowheel > --- UTILITY (2) ------ Huge Storage Unit Seismic Detector > --- WEAPON (2) ------- Battle Rifle Battle Rifle > --- INVENTORY (25) --- Subdweller Power Source Wheel Subdweller Monowheel Small Storage Unit Improved Terrain Scanner ECM Suite Light Armor Plating Light Armor Plating Tower Shield Makeshift Hacking Suite Makeshift Hacking Suite Makeshift System Shield Heavy Riot Gun Battle Rifle Subdweller Machine Gun Barrage Gun Slug Cannon Grenade Launcher Grenade Launcher Subdweller Shrapnel Launcher Datajack Shrapnel Trap Peak State ------------ > --- POWER ------------ Light Nuclear Core > --- PROPULSION ------- Wheel Subdweller Monowheel > --- UTILITY ---------- Huge Storage Unit Improved Terrain Scanner > --- WEAPON ----------- Battle Rifle Slug Cannon > --- INVENTORY -------- Subdweller Power Source Subdweller Monowheel Small Storage Unit Seismic Detector ECM Suite Light Armor Plating Light Armor Plating Tower Shield Heavy Riot Gun Subdweller Beam Cannon Subdweller Machine Gun Barrage Gun Grenade Launcher Grenade Launcher Datajack Shrapnel Trap [Rating: 20] Favorites ----------- Power Light Nuclear Core Engine Ion Engine Power Core Light Nuclear Core Propulsion Wheel Leg Aluminum Leg Wheel Wheel Utility Seismic Detector Device Seismic Detector Storage Huge Storage Unit Protection Light Armor Plating Weapon Assault Rifle Energy Gun Heavy Riot Gun Energy Cannon Subdweller Beam Cannon Ballistic Gun Assault Rifle Ballistic Cannon Slug Cannon Launcher Grenade Launcher Special Melee Weapon Datajack Build | -11 -10 -10 -10 ------- Run | Yrd Mat Min Sub Slots Evolved . | . . . . Power . | . . . . Propulsion . | . . . . Utility . | . . . . Weapon . | . . . . Parts Attached 28 | 8 2 3 15 Power 2 | 1 . . 1 Engine 1 | 1 . . . Core 1 | . . . 1 Reactor . | . . . . Propulsion 6 | 2 . 2 2 Treads . | . . . . Leg 2 | 2 . . . Wheel 4 | . . 2 2 Hover . | . . . . Flight . | . . . . Utility 5 | 3 . 1 1 Device 2 | 2 . . . Storage 2 | 1 . 1 . Processor . | . . . . Hackware . | . . . . Protection 1 | . . . 1 Artifact . | . . . . Weapon 15 | 2 2 . 11 Energy Gun 1 | . . . 1 Energy Cannon 1 | . . . 1 Ballistic Gun 8 | 2 . . 6 Ballistic Cannon 1 | . . . 1 Launcher 3 | . 1 . 2 Special Weapon . | . . . . Impact Weapon . | . . . . Slashing Weapon . | . . . . Piercing Weapon . | . . . . Special Melee Weapon 1 | . 1 . . Unidentified Prototypes . | . . . . Parts Lost 6 | . . . 6 Power 1 | . . . 1 Propulsion 2 | . . . 2 Utility . | . . . . Weapon 3 | . . . 3 Highest Loss Streak 4 | . . . 4 To Critical Strikes . | . . . . Average Backups 12 | . 5 9 16 Power . | . . 1 . Propulsion . | . . . 1 Utility 5 | . 3 4 6 Weapon 4 | . 1 2 6 Tool/Special . | . . . . Unused Backups 13 | . 3 . 10 Power 2 | . 1 . 1 Propulsion 2 | . . . 2 Utility 8 | . 2 . 6 Weapon 1 | . . . 1 Tool/Special . | . . . . Average Slot Usage (%) 98 | . 100 100 98 Engine 6 | . 14 14 . Core 7 | . . . 12 Leg 8 | . 28 10 . Wheel 19 | . . 17 27 Device 13 | . 14 14 13 Storage 14 | . 14 14 14 Ballistic Gun 21 | . 23 28 18 Ballistic Cannon 4 | . . . 7 Peak Build Rating 20 | 9 8 9 20 Average Rating 13 | 6 7 8 17 On Entrance 6 | . 7 8 9 Naked Turns . | . . . . Heaviest Build 97 | 15 16 90 97 Greatest Support 30 | 20 20 20 30 Greatest Overweight (x) 8 | 2 . 8 8 Average Overweight (x) 2 | . . 2 2 Largest Inventory Capacity 25 | 8 8 25 25 Average Capacity 19 | 7 8 19 25 Most Carried 24 | 1 8 12 24 Average Carried 13 | . 5 9 17 Final Capacity 25 | 8 8 25 25 Final Carried 23 | 1 8 12 23 Class Distribution -------------------- 52% | Mutant 47% | Scavenger-Mutant Dominant Class ---------------- Mutant | -10/Materials Mutant | -10/Mines Scavenger-Mutant | -10/Subcaves Resources | -11 -10 -10 -10 ----------- Run | Yrd Mat Min Sub Matter Collected 1255 | 245 381 103 526 Remotely . | . . . . Salvage Created 1130 | 46 515 177 392 Parts 81 | 9 33 17 22 Haulers Intercepted 1 | . 1 . . Recyclers Shooed 1 | 1 . . . Parts Field Recycled . | . . . . Retrieved Matter . | . . . . Parts Self-Destructed 8 | . . . 8 Prevented . | . . . . Kills | -11 -10 -10 -10 ------- Run | Yrd Mat Min Sub Combat Hostiles Destroyed 25 | . 8 5 12 Guns 17 | . 8 5 4 Cannons 7 | . . . 7 AOE 1 | . . . 1 Classes Destroyed 11 | 1 4 2 4 Builder 1 | . 1 . . Tunneler 6 | 3 1 2 . Hauler 1 | . 1 . . Recycler 1 | . . 1 . Watcher 2 | . 2 . . Swarmer 6 | . . 5 1 Grunt 8 | . 8 . . Sentry 1 | . . . 1 Artisan 2 | . . . 2 Cobbler 1 | . . . 1 Subdweller 10 | . . . 10 Best Kill Streak 4 | 3 3 3 4 Combat Bots Only 4 | . 3 3 4 Max Kills in Single Turn 2 | 1 2 1 2 Gunslinging 1 | . . . 1 Exploded 1 | . . . 1 Melee . | . . . . Uniques/NPCs Destroyed . | . . . . Combat | -11 -10 -10 -10 -------- Run | Yrd Mat Min Sub Hostile Shots Fired 112 | . 38 23 51 Missed 32 | . 8 7 17 Hits 80 | . 30 16 34 Projectile 80 | . 30 16 34 AOE 3 | . . . 3 Critical Strikes 2 | . 1 1 . Damage Taken 1075 | . 320 88 667 Core 250 | . 37 17 196 Absorbed by Shields . | . . . . Ignored by Resistances 317 | . 99 32 186 Core Remaining (%) 100 | 100 . . . Volleys Fired 137 | 9 41 21 66 Largest 2 | 2 2 1 2 Hottest 100 | 40 40 20 100 Shots Fired 221 | 18 78 21 104 Gun 169 | 18 74 21 56 Cannon 44 | . . . 44 Launcher 8 | . 4 . 4 Special . | . . . . Kinetic 202 | 18 74 21 89 Thermal 10 | . . . 10 Explosive 8 | . 4 . 4 Electromagnetic 1 | . . . 1 Robot Hit Streak 18 | 16 18 8 15 Robot Miss Streak 3 | . 3 2 2 Penetration Max . | . . . . Secondary Targets 1 | . . . 1 Max Gunslinging Chain 1 | . . . 1 Shots Hit Robots 147 | 16 54 15 62 Core Hits 66 | 4 28 9 25 Critical Kills 5 | 1 . 2 2 Critical Parts Destroyed . | . . . . Critical Strikes 8 | 1 . 2 5 Destroy 8 | 1 . 2 5 Melee Attacks . | . . . . Impact . | . . . . Slashing . | . . . . Piercing . | . . . . Sneak Attacks . | . . . . Combat Hostiles . | . . . . Follow-up Attacks . | . . . . Damage Inflicted 2690 | 218 758 201 1513 Guns 1482 | 218 712 201 351 Cannons 903 | . . . 903 Explosions 305 | . 46 . 259 Melee . | . . . . Ramming . | . . . . Kinetic 2173 | 218 712 201 1042 Thermal 227 | . . . 227 Explosive 280 | . 46 . 234 Electromagnetic 10 | . . . 10 Impact . | . . . . Slashing . | . . . . Piercing . | . . . . Highest Corruption . | . . . . Average Corruption . | . . . . Corruption Purged . | . . . . Corruption Blocked . | . . . . Overload Shots . | . . . . Overflow Damage 6 | . . . 6 Projectiles . | . . . . Explosions 6 | . . . 6 Melee . | . . . . Knockbacks 2 | . . . 2 Impact . | . . . . Kinetic 2 | . . . 2 Secondary . | . . . . Self-Inflicted Damage 18 | . . . 18 Shots 1 | . . . 1 Rammed . | . . . . Targets Rammed . | . . . . Kicked . | . . . . Crushed . | . . . . Highest Temperature 48 | . 20 . 48 Average Temperature 10 | . 6 . 13 Received Heat Transfer 348 | . 234 . 114 Siege Activations . | . . . . Martial Activations . | . . . . Shielding Activations . | . . . . Robots Disrupted . | . . . . Combat Hostiles . | . . . . Robots Corrupted . | . . . . Combat Hostiles . | . . . . Parts Fried . | . . . . Impact Corruptions . | . . . . Robots Melted . | . . . . Combat Hostiles . | . . . . Parts Melted . | . . . . Heat Transferred 309 | . . . 309 Parts Sabotaged . | . . . . Parts Stolen . | . . . . Parts Stripped . | . . . . Power Chain Reactions 1 | . . . 1 Alert | -11 -10 -10 -10 ------- Run | Yrd Mat Min Sub Maximum Alert Level . | . . . . Low Security (%) 100 | 100 100 100 . Level 1 . | . . . . Level 2 . | . . . . Level 3 . | . . . . Level 4 . | . . . . Level 5 . | . . . . High Security . | . . . . Max Security . | . . . . Peak Influence 70 | 10 61 70 . Initial . | . . . . Average 12 | 1 14 10 . Influence Increases 522 | 15 281 186 40 Destroy 0b10 Robot/C 340 | . 160 140 40 Destroy 0b10 Robot/NC 55 | 15 25 15 . Destroy Leader 66 | . 36 30 . Allied During Kill 1 | . . 1 . Successful Hack 25 | . 25 . . Destroy Structure 35 | . 35 . . Influence Decreases 522 | 15 281 165 61 Entered New Map 13 | . . . 13 Time Decay 489 | 15 281 145 48 Lost Ally 20 | . . 20 . Squads Dispatched 1 | . . 1 . Investigation . | . . . . Extermination . | . . . . Reinforcement . | . . . . Assault 1 | . . 1 . Garrison . | . . . . Intercept . | . . . . Searches Triggered . | . . . . Construction Impeded . | . . . . Haulers Reinforced . | . . . . Active Scanning Responses . | . . . . Cargo Convoy Interrupts . | . . . . Stealth | -11 -10 -10 -10 --------- Run | Yrd Mat Min Sub Distress Signals . | . . . . Communications Jammed . | . . . . Distress Signals . | . . . . Times Spotted 35 | . 14 7 14 Peak Tracking Total 4 | . 3 4 4 Tactical Retreats . | . . . . Traps | -11 -10 -10 -10 ------- Run | Yrd Mat Min Sub Traps Triggered 1 | . 1 . . Indirectly . | . . . . Trap Hack Attempts 18 | . 18 . . Triggered . | . . . . Disarmed . | . . . . Reprogrammed 4 | . 4 . . Reused . | . . . . Traps Extracted . | . . . . Installed . | . . . . Triggered . | . . . . Most Traps Carried 1 | . . . 1 Machines | -11 -10 -10 -10 ---------- Run | Yrd Mat Min Sub Machines Disabled 1 | . . . 1 Max in Single Turn 1 | . . . 1 Machines Repaired . | . . . . Machines Dismantled . | . . . . Machines Sabotaged . | . . . . Overloaded Fab Kills . | . . . . Hacking | -11 -10 -10 -10 --------- Run | Yrd Mat Min Sub Machines Accessed 11 | . 9 . 2 Terminals 8 | . 8 . . Fabricators . | . . . . Repair Stations . | . . . . Recycling Units 1 | . 1 . . Scanalyzers . | . . . . Garrison Access . | . . . . Total Hacks 22 | . 18 . 4 Successful 17 | . 13 . 4 Failed 5 | . 5 . . Catastrophic . | . . . . Database Lockouts . | . . . . Manual 11 | . 11 . . Terminals 17 | . 17 . . Fabricators . | . . . . Repair Stations . | . . . . Recycling Units 1 | . 1 . . Scanalyzers . | . . . . Garrison Access . | . . . . Terminal Hacks 9 | . 5 . 4 Record 3 | . . . 3 Prototype ID Bank 2 | . 2 . . Level Access Points 1 | . 1 . . Branch Access Points 1 | . 1 . . Hauler Manifests 1 | . 1 . . Proto ID Catalog 1 | . . . 1 Fabricator Hacks . | . . . . Repair Station Hacks . | . . . . Recycling Unit Hacks 1 | . 1 . . Report Inventory 1 | . 1 . . Scanalyzer . | . . . . Garrison Access Hacks . | . . . . Unauthorized Hacks 7 | . 7 . . Terminals 7 | . 7 . . Botnet 2 | . 2 . . Skim 5 | . 5 . . Fabricators . | . . . . Repair Stations . | . . . . Recycling Units . | . . . . Scanalyzers . | . . . . Garrison Access . | . . . . Data Cores Recovered . | . . . . Used . | . . . . Hacking Detections 7 | . 7 . . Full Trace Events . | . . . . Feedback Events . | . . . . Feedback Blocked . | . . . . Robot Schematics Acquired . | . . . . Robots Built . | . . . . Authchips . | . . . . Time . | . . . . Total Robot Build Rating . | . . . . Part Schematics Acquired . | . . . . Parts Built . | . . . . Authchips . | . . . . Time . | . . . . Total Part Build Rating . | . . . . Parts Repaired . | . . . . Time . | . . . . Parts Recycled . | . . . . Recycled Matter . | . . . . Retrieved Matter . | . . . . Retrieved Components . | . . . . Parts Scanalyzed . | . . . . Part Schematics Acquired . | . . . . Parts Damaged . | . . . . Bothacking | -11 -10 -10 -10 ------------ Run | Yrd Mat Min Sub Used RIF Installer . | . . . . Robots Hacked . | . . . . Non-combat . | . . . . Combat . | . . . . Robot Hacks Applied . | . . . . Relay Couplers Released . | . . . . Fabnet Peak Effective % . | . . . . Robots Rewired . | . . . . Allies Hacked . | . . . . Hacks Repelled . | . . . . Allies | -11 -10 -10 -10 -------- Run | Yrd Mat Min Sub Total Allies 1 | . . 1 . Largest Group 1 | . . 1 . Highest-Rated Group 31 | . . 31 . Highest-Rated Ally 31 | . . 31 . Total Orders . | . . . . Ally Attacks 4 | . . 4 . Total Damage 85 | . . 85 . Kills 2 | . . 2 . Allies Corrupted . | . . . . Allies Melted . | . . . . Intel | -11 -10 -10 -10 ------- Run | Yrd Mat Min Sub Active Infowar (turns) 4401 | 37 1029 842 2493 Terrain 560 | 27 . . 533 Seismic 3841 | 10 1029 842 1960 Robot Analysis Total . | . . . . Derelict Logs Recovered 3 | . . 2 1 Drone Launches . | . . . . Drone Recoveries . | . . . . Exploration | -11 -10 -10 -10 ------------- Run | Yrd Mat Min Sub Turns Passed 4652 | 97 1029 842 2684 Spaces Moved 2583 | 49 554 531 1449 Core 10 | 10 . . . Treads . | . . . . Legs 796 | 39 554 203 . Wheels 1777 | . . 328 1449 Hover . | . . . . Flight . | . . . . Fastest Speed 50 | 50 120 95 119 Average Speed 128 | 111 120 135 129 Slowest Speed 200 | 150 120 200 200 Overloaded Moves . | . . . . Propulsion Burnouts . | . . . . Robots Hopped . | . . . . Potential Cave-ins . | . . . . Cave-ins Triggered . | . . . . Exploration Rate (%) 64 | 4 95 88 71 Regions Visited 3 Branch Regions 2 Pre-discovered Areas 2 | . . 1 1 Known Exits Taken 2 | . 1 1 . Unknown Exits Taken 1 | 1 . . . Scrap Searched 9 | . . 3 6 Spaces Dug 42 | . 24 . 18 Terrain Destroyed 71 | . 34 . 37 Melee . | . . . . Projectile 4 | . . . 4 AOE 67 | . 34 . 33 Terrain Rammed . | . . . . Walls Destroyed . | . . . . Machines Disabled . | . . . . Actions | -11 -10 -10 -10 --------- Run | Yrd Mat Min Sub Total 3692 | 69 840 631 2152 Wait 882 | 3 212 70 597 Move 2580 | 48 553 530 1449 Hop . | . . . . Pick Up 32 | 1 10 5 16 Fast Attach 8 | 7 . . 1 Attach 6 | . . . 6 Detach . | . . . . Swap 23 | 1 3 4 15 Drop 6 | . 3 1 2 Fire 137 | 9 41 21 66 Melee . | . . . . Ram . | . . . . Kick . | . . . . Crush . | . . . . Escape Stasis . | . . . . Rewire . | . . . . Trap 18 | . 18 . . Miscellaneous . | . . . . Route ------- -11/Scrapyard -10/Materials (discovered 6 exits: *Mat x3 / *Min x2 / Sub) -10/Mines (discovered 2 exits: *Mat / *Sub) -10/Subcaves (discovered 2 exits: Mat / Rec) History --------- Turn | Location | Event 8 | -11/Scrapyard | Discovered new exit (range 16) 98 | -11/Scrapyard | Entered Materials 211 | -10/Materials | Discovered new exit (range 15) 278 | -10/Materials | Discovered new exit (range 14) 313 | -10/Materials | Build established: Mutant 582 | -10/Materials | Identified exit to Subcaves 583 | -10/Materials | Discovered new exit (range 9) 620 | -10/Materials | Discovered new exit (range 13) 636 | -10/Materials | Learned 2 Storage zone layouts 732 | -10/Materials | Learned Storage emergency access door positions 767 | -10/Materials | Learned location of 2 exits from Subcaves 798 | -10/Materials | Learned 4 Recycling zone layouts 838 | -10/Materials | Learned 2 Storage zone layouts 862 | -10/Materials | Identified exit to Materials 862 | -10/Materials | Identified exit to Mines 1127 | -10/Materials | Entered Mines 1301 | -10/Mines | Discovered exit to Materials (range 16) 1361 | -10/Mines | A weapon hastily lodged in a ceiling crevice suddenly fell to the ground 1864 | -10/Mines | Received a Rocket Launcher from a helpful Derelict 1885 | -10/Mines | Met a Derelict testing a Signal Generator 1918 | -10/Mines | Discovered exit to Subcaves (range 9) 1969 | -10/Mines | Entered Subcaves 1970 | -10/Subcaves | Approached by a straggling Scientist 1970 | -10/Subcaves | Identified exit to Recycling 1970 | -10/Subcaves | Identified exit to Materials 2043 | -10/Subcaves | Visited Clippyterm 2047 | -10/Subcaves | Learned Factory fabricator intel 2145 | -10/Subcaves | Core integrity fell below 50% 2150 | -10/Subcaves | Core integrity fell below 20% 2180 | -10/Subcaves | Lost 4 parts (1p1n2w) 2545 | -10/Subcaves | Build established: Scavenger-Mutant 2598 | -10/Subcaves | Visited 4L-MR0's lab 2614 | -10/Subcaves | Found Prototype Protection 2620 | -10/Subcaves | Identified Tower Shield 2714 | -10/Subcaves | Learned location of Storage (-7) 4495 | -10/Subcaves | Shifting Twisted Machinery released Scrap Shield 4496 | -10/Subcaves | Shifting Twisted Machinery released Sub. Monowheel 4653 | -10/Subcaves | Destroyed by F9-WT6(R) with Subdweller Machine Gun Last Messages --------------- 03719_ Acquired 10 matter. 03772_ Acquired Sub. Shrapnel Launcher. 03783_ Acquired Battle Rifle. 04089_ PO-CCK(O) cries out in pain. 04089_ PO-CCK(O) destroyed. 04091_ Subatomizers dissect the Wheel. 04098_ Acquired Wheel. 04278_ L5-WMN(R): "SUBMAD!" 04278_ L5-WMN(R) suffers critical hit (Destroy). 04278_ L5-WMN(R) destroyed. 04288_ Subatomizers dissect the Sub. Laser. 04291_ Acquired 45 matter. 04369_ Acquired 19 matter. 04372_ Acquired 3 matter. 04416_ O3-MTG(u) tweaks Twisted Machinery. 04442_ Sub. Beam Cannon shoots sparks and powers down. 04444_ Dropped Broken Sub. Beam Cannon. 04445_ Destroyed Multitool. Scrap Shield falls loose from the Twisted Machinery. Sub. Monowheel falls loose from the Twisted Machinery. Map ----- +----------------------------------------------------+ | ????????# ### ] #??????? | | ????????# #?#### ##?????? | | ????????# #### #?### ##????? | | ???????## #??#### #?# ##???? | | ???????# #?????####?## #???? | | ???????# #???????????# #??? | | ???????# ## #???????????###### #??? | | ???????# ######?????????????????# ##??? | | ???????# #???????????????????????###???? | | ???????## ## #?????????????????????????????? | | ????????##?## ##?????????????????????????????? | | ????????????# #??????????????????????????????? | | ????????????## #??????????????????????????????? | | ?????????????### ##?????????????????????????????? | | ??????????????## #?????????????????????????????? | | ?????????####?# ##?????????????????????????????? | | ????????## #### #??????????????????????????????? | | ????????# ##?????????????????????????????? | | ????????# #?????????????????????????????? | | ????????# #####?????????????????????????????? | | ???????## ##?????????????????????????????????? | | ???????# #??????????????????????????????????? | | ???????# #?###??????#####???????????????????? | | ???????# #?# ###?#### ##??????????????????? | | ???????# ### ### # #??????????????????? | | ???????# @ #??????????????????? | | #####??## ##??????????????????? | | #"%"###?# # #???????????????????? | | ### ""### # # #???????????????? | | ### ## ### ## ### #???????????????? | | ## [###" ###### ### ###? # #???????????????? | | ### # " # ### #### #? # *%??????????????? | | #?# ## ## ### R ????????????? | | #?# ## ##? ???????????? | | #?# #" ### #?? R ???????????? | | #### ## #?## #???# ???????????? | | ##" # #??## ## ######????? ???????????? | | +##%! "## ##### ##?##??????????????????????? | | ##% "## ## ####??????????????????????????? | | " "### ##?????????????????????????????? | | ""### ##??????????????????????????????? | | ######?## ## #???????????????????????????????? | | ????????###### #???????????????????????????????? | | ????????????# ##???????????????????????????????? | | ????????????## ##???????????????????????????????? | | ????????????## #???????????????????????????????? | | ????????????# ##???????????????????????????????? | | ????????????# #???????????????????????????????? | | ????????????## ##???????????????????????????????? | | ?????????????# ##???????????????????????????????? | +----------------------------------------------------+ Best States ------------- Heat Dissipation 25 Energy Generation 14 Energy Capacity 250 Matter Stores 300 Matter Capacity 300 Sight Range 16 Terrain Scan Range 16 Terrain Scan Density 10 Armor Coverage 150 Resistance: KI 20 Resistance: TH 20 Resistance: EX 20 Resistance: EM 20 Resistance: I 20 Resistance: S 20 Resistance: P 20 Evasion (%) 55 Offensive Hacking 10 Item Schematics ----------------- None Robot Schematics ------------------ None Fabricated ------------ Nothing Repaired ---------- Nothing Alien Tech Used ----------------- None Achievements -------------- None Challenges ------------ None Game ------ Seed EnhancedBoreFirepult Manual? 0 Play Time 01:26:00 Cumulative 138.0 hours Start 2025.09.07 @ 19:11:25 End 2025.09.08 @ 14:13:11 Sessions 1 Manual Loads 0 Difficulty Adventurer Special Mode None Game No. 95 Rogue 0 Adventurer 95 Explorer 0 Win Type - Total 0 Types 0/0/0/0/0/0/0/0/0/0 Lore% 33 Gallery% 46 Achievement% 39 Wizard Run 0 Options --------- Layout 0 ASCII 0 Keyboard 0 Movement Mouse Keybinds 0 Fullscreen 1 Font 18/SmallcapsGlow Map View 76x50 Zoom Use 0% Tactical HUD 1 Map Filters NONE Filters NONE Steam 1 RUN: 62a3f8e3-f6a3-4434-a1cc-3d71c35286e0